bitfinex/quotes_BTCUSD_20241215
["timestamp","ask_amount","ask_price","bid_price","bid_amount"]
[1734296862791,0.0011726,103080.0,103070.0,5.21851886]
[1734296863000,0.0011726,103080.0,103070.0,5.70468179]
[1734296864256,0.001,103090.0,103080.0,0.32730664]
[1734296864498,0.001,103090.0,103080.0,5.60734573]
[1734296864713,0.001,103090.0,103080.0,5.60617313]
[1734296864929,0.001,103090.0,103080.0,5.58021613]
[1734296866491,0.001,103090.0,103080.0,3.62113513]
[1734296866698,0.001,103090.0,103080.0,3.26146913]
[1734296867111,0.00667759,103090.0,103080.0,3.26146913]
[1734296867740,0.00667759,103090.0,103080.0,3.20428947]
[1734296868147,0.00667759,103090.0,103080.0,2.55773847]
[1734296868443,0.00667759,103090.0,103080.0,1.95384047]
[1734296868855,0.00954504,103090.0,103080.0,1.95384047]
[1734296868990,0.00954504,103090.0,103080.0,1.95383587]
[1734296869886,0.00954504,103090.0,103080.0,1.86518255]
[1734296870350,0.00954504,103090.0,103080.0,1.84942689]
[1734296870559,0.00954504,103090.0,103080.0,1.86518255]
[1734296870766,0.00954504,103090.0,103080.0,1.95383587]
[1734296870975,0.00954504,103090.0,103080.0,1.76612852]
[1734296871403,0.00954504,103090.0,103080.0,1.76612823]
[1734296871616,0.00954504,103090.0,103080.0,1.67747491]
[1734296871828,0.09094504,103090.0,103080.0,0.20977937]
[1734296872285,0.13624504,103090.0,103080.0,0.20977937]
[1734296872534,0.23529907,103090.0,103080.0,0.20977937]
[1734296873216,0.23529907,103090.0,103080.0,0.35008376]
[1734296874271,0.23316281,103090.0,103080.0,0.35008376]
[1734296874478,0.23529907,103090.0,103080.0,0.35008376]
[1734296876614,0.23529907,103090.0,103080.0,0.15605976]
[1734296877021,0.23529907,103090.0,103080.0,0.35008376]
[1734296877691,0.23529907,103090.0,103080.0,0.3500852]
[1734296879634,0.42930407,103090.0,103080.0,0.0060612]
[1734296879842,0.0778,103070.0,103060.0,0.3881506]
[1734296880059,0.0778,103070.0,103060.0,0.388108]
[1734296880279,0.08629856,103070.0,103060.0,0.388108]
[1734296880963,0.08629856,103070.0,103060.0,0.538108]
[1734296884102,0.18535259,103070.0,103060.0,0.15]
[1734296884323,0.42786669,103070.0,103060.0,0.15]
[1734296884541,0.42689459,103070.0,103060.0,0.15]
[1734296886068,0.0778,103060.0,103050.0,0.1941571]
[1734296886481,0.08626218,103060.0,103050.0,0.1941571]
[1734296887340,0.08626218,103060.0,103050.0,0.3441571]
[1734296887992,0.42687721,103060.0,103050.0,0.1500861]
[1734296888278,0.42687721,103060.0,103050.0,8.61e-05]
[1734296890406,0.44987721,103060.0,103050.0,8.61e-05]
[1734296914525,0.45004941,103060.0,103050.0,8.61e-05]
[1734296915603,0.45104941,103060.0,103050.0,8.61e-05]
[1734296917718,0.50104941,103060.0,103050.0,8.61e-05]
[1734296918971,0.50614941,103060.0,103030.0,0.1400861]
[1734296919199,0.324499,103040.0,103030.0,0.14014069]
[1734296919338,0.42355303,103040.0,103030.0,0.14014069]
[1734296919739,0.43206396,103040.0,103030.0,0.14014069]
[1734296921493,0.43206396,103040.0,103030.0,5.459e-05]
[1734296924310,0.45506396,103040.0,103030.0,5.459e-05]
[1734296926008,0.45506396,103040.0,103030.0,0.00014069]
[1734296931460,0.23796496,103040.0,103030.0,0.19425869]
[1734296931688,0.23796496,103040.0,103030.0,0.00014069]
[1734296932321,0.43206396,103040.0,103030.0,0.00014069]
[1734296933200,0.23896496,103040.0,103030.0,0.00014069]
[1734296936128,0.43306396,103040.0,103030.0,0.00014069]
[1734296938312,0.43323636,103040.0,103030.0,0.00014069]
[1734296941132,0.23913736,103040.0,103030.0,0.00014069]
[1734296942492,0.23913736,103040.0,103030.0,0.00620528]
[1734296942716,0.43323636,103040.0,103030.0,0.00620528]
[1734296944539,0.54294442,103040.0,103030.0,0.00620528]
[1734296944975,0.67300651,103040.0,103030.0,0.00620528]
[1734296945187,0.84642264,103040.0,103030.0,0.00620528]
[1734296948426,0.89642264,103040.0,103030.0,0.00620528]
[1734296948649,1.26428983,103040.0,103030.0,0.00014069]
[1734296948871,1.2209358,103040.0,103030.0,0.00014069]
[1734296949096,1.00416564,103040.0,103030.0,0.00014069]
[1734296949309,0.90511161,103040.0,103030.0,0.00014069]
[1734296949522,1.12182631,103040.0,103030.0,0.00014069]
[1734296950445,1.22184237,103040.0,103030.0,0.00014069]
[1734296951481,0.96173967,103040.0,103030.0,0.00014069]
[1734296951681,0.97315306,103040.0,103030.0,0.00014069]
[1734296953192,0.99271905,103040.0,103030.0,0.00014069]
[1734296953449,1.16600649,103040.0,103030.0,0.00014069]
[1734296953674,0.99271905,103040.0,103030.0,0.00014069]
[1734296954315,1.16600937,103040.0,103030.0,0.00014069]
[1734296954939,1.16581447,103040.0,103030.0,0.00014069]
[1734296955161,1.38239653,103040.0,103030.0,0.00014069]
[1734296955386,1.16581449,103040.0,103030.0,0.00014069]
[1734296956295,1.1353396,103040.0,103030.0,0.00014069]
[1734296958633,0.96207396,103040.0,103030.0,0.00014069]
[1734296959263,1.13528089,103040.0,103030.0,0.00014069]
[1734296960326,1.18528089,103040.0,103030.0,0.00014069]
[1734296960537,1.13528089,103040.0,103030.0,0.00014069]
[1734296961836,0.96207396,103040.0,103030.0,0.00014069]
[1734296962507,1.13524952,103040.0,103030.0,0.00014069]
[1734296962711,0.96207396,103040.0,103030.0,0.00014069]
[1734296964475,1.13524561,103040.0,103030.0,0.00014069]
[1734296965543,1.23110862,103040.0,103030.0,0.00014069]
[1734296968981,1.10950542,103040.0,103030.0,0.00014069]
[1734296969213,0.93633377,103040.0,103030.0,0.00014069]
[1734296970294,0.71975172,103040.0,103030.0,0.00014069]
[1734296970722,0.97945704,103040.0,103030.0,0.00014069]
[1734296971162,0.71975172,103040.0,103030.0,0.00014069]
[1734296972449,0.93611424,103040.0,103030.0,0.00014069]
[1734296972874,0.71975172,103040.0,103030.0,0.00014069]
[1734296974415,0.93608697,103040.0,103030.0,0.00014069]
[1734296974945,0.71975172,103040.0,103030.0,0.00014069]
[1734296975367,0.97945704,103040.0,103030.0,0.00014069]
[1734296980208,0.92118087,103040.0,103030.0,0.00014069]
[1734296980414,0.97945704,103040.0,103030.0,0.00014069]
[1734296982079,0.8629047,103040.0,103030.0,0.00014069]
[1734296982290,1.02925206,103040.0,103030.0,0.00014069]
[1734296982493,0.53363339,103040.0,103030.0,0.00014069]
[1734296982703,0.92311445,103040.0,103030.0,0.00014069]
[1734296982918,1.05294418,103040.0,103030.0,0.00014069]
[1734296984153,1.13951242,103040.0,103030.0,0.00014069]
[1734296984805,0.12015075,103040.0,103030.0,0.00014069]
[1734296985019,0.10873736,103040.0,103030.0,0.05841686]
[1734296985227,0.10970946,103040.0,103030.0,0.00014069]
[1734296986281,0.10970946,103040.0,103030.0,0.00620585]
[1734296989026,0.30380846,103040.0,103030.0,0.00620585]
[1734296989228,0.30283636,103040.0,103030.0,0.00620585]
[1734296989645,0.30283636,103040.0,103030.0,0.00014069]
[1734296990074,0.32583636,103040.0,103030.0,0.00014069]
[1734296992785,0.10873736,103040.0,103030.0,0.05841686]
[1734296992992,0.10970946,103040.0,103030.0,0.05841686]
[1734296995072,0.10873736,103040.0,103030.0,0.25253486]
[1734296995277,0.10873736,103040.0,103030.0,0.25859942]
[1734296997036,0.10873736,103040.0,103030.0,0.26469942]
[1734296998040,0.10873736,103040.0,103030.0,0.1612141]
[1734296998248,0.10873736,103040.0,103020.0,0.2048722]
[1734296998476,0.10873736,103040.0,103030.0,0.25239417]
[1734296998683,0.10873736,103040.0,103030.0,0.26313137]
[1734296999730,0.10873736,103040.0,103030.0,0.41313137]
[1734296999947,0.00968333,103040.0,103030.0,0.47330722]
[1734297000162,0.00738921,103040.0,103030.0,1.21527622]
[1734297001065,0.00738921,103040.0,103030.0,0.34601768]
[1734297001280,0.10644324,103040.0,103030.0,0.21017585]
[1734297001492,0.10644324,103040.0,103030.0,0.20827617]
[1734297001748,0.10644324,103040.0,103030.0,0.40239417]
[1734297007810,0.10644324,103040.0,103030.0,0.2261283]
[1734297008471,0.00738921,103040.0,103030.0,0.2314969]
[1734297008691,0.00738921,103040.0,103030.0,0.2368655]
[1734297010199,0.00738921,103040.0,103030.0,0.24292894]
[1734297010431,0.00738921,103040.0,103030.0,0.60054611]
[1734297011061,0.00738921,103040.0,103030.0,0.54226994]
[1734297012529,0.00738921,103040.0,103030.0,0.54226977]
[1734297013640,0.00738921,103040.0,103030.0,2.50350277]
[1734297013849,0.00738921,103040.0,103030.0,2.58796694]
[1734297015771,0.00738921,103040.0,103030.0,2.58190367]
[1734297015977,0.00738921,103040.0,103030.0,2.58796676]
[1734297017427,0.00738921,103040.0,103030.0,2.52969059]
[1734297021303,0.00738921,103040.0,103030.0,2.58796676]
[1734297022392,0.00738921,103040.0,103030.0,2.58190367]
[1734297022614,0.00738921,103040.0,103030.0,2.58796671]
[1734297023259,0.00738921,103040.0,103030.0,2.73702074]
[1734297023490,0.00738921,103040.0,103030.0,2.79529691]
[1734297023708,0.00738921,103040.0,103030.0,2.73702074]
[1734297024351,0.00738921,103040.0,103030.0,2.82379527]
[1734297024558,0.00738921,103040.0,103030.0,2.87379527]
[1734297025226,0.00738921,103040.0,103030.0,2.87384787]
[1734297025445,0.00738921,103040.0,103030.0,3.00408857]
[1734297025868,0.00738921,103040.0,103030.0,3.31677074]
[1734297026114,0.00738921,103040.0,103030.0,3.37504691]
[1734297026334,0.00738921,103040.0,103030.0,3.31677004]
[1734297026544,0.00738921,103040.0,103030.0,3.49042431]
[1734297027425,0.00738921,103040.0,103030.0,3.62066502]
[1734297027866,0.0011724,103040.0,103030.0,3.62066502]
[1734297028083,0.0073874,103040.0,103030.0,3.62066502]
[1734297028296,0.0073874,103040.0,103030.0,3.49048079]
[1734297029270,0.0073874,103040.0,103030.0,3.70754863]
[1734297029482,0.0073874,103040.0,103030.0,3.70754869]
[1734297029695,0.0073874,103040.0,103030.0,3.70831566]
[1734297030361,0.0073874,103040.0,103030.0,3.62138765]
[1734297030561,0.0073874,103040.0,103030.0,3.49099563]
[1734297030928,0.0073874,103040.0,103030.0,3.62140417]
[1734297031353,0.0073874,103040.0,103030.0,3.62141031]
[1734297031568,0.00455003,103040.0,103030.0,3.62141031]
[1734297032831,0.00455003,103040.0,103030.0,3.49099563]
[1734297033189,0.0011724,103040.0,103030.0,3.62140075]
[1734297033567,0.0011724,103040.0,103030.0,3.62594688]
[1734297034357,0.0011724,103040.0,103030.0,3.62561954]
[1734297035443,0.0011724,103040.0,103030.0,3.5090672]
[1734297035804,0.00455003,103040.0,103030.0,2.71650956]
[1734297036026,0.00455003,103040.0,103030.0,2.1170675]
[1734297036236,0.0011724,103040.0,103030.0,2.17313004]
[1734297036515,0.00455003,103040.0,103030.0,2.39047963]
[1734297037408,0.0011724,103040.0,103030.0,2.17313004]
[1734297037818,0.0045528,103040.0,103030.0,2.39047963]
[1734297038031,0.0045528,103040.0,103030.0,2.17313004]
[1734297039293,0.0045528,103040.0,103030.0,2.17313023]
[1734297040115,0.0045528,103040.0,103030.0,5.29903123]
[1734297040333,0.0045528,103040.0,103030.0,5.29814982]
[1734297040491,0.0011724,103040.0,103030.0,5.21120787]
[1734297041376,0.0011724,103040.0,103030.0,5.08079812]
[1734297041781,0.0011724,103040.0,103030.0,5.21134063]
[1734297041932,0.0011724,103040.0,103030.0,5.16134063]
[1734297042105,0.0011724,103040.0,103030.0,5.21134063]
[1734297042303,0.0011724,103040.0,103030.0,5.21135901]
[1734297043336,0.0045528,103040.0,103030.0,5.21135901]
[1734297043549,0.0045528,103040.0,103030.0,5.08079812]
[1734297043824,0.0011724,103040.0,103030.0,5.08079812]
[1734297045202,0.0045528,103040.0,103030.0,5.08079812]
[1734297045398,0.0011724,103040.0,103030.0,4.95050039]
[1734297045625,0.0045528,103040.0,103030.0,4.95050461]
[1734297045853,0.0045528,103040.0,103030.0,4.39066728]
[1734297046002,0.0045528,103040.0,103030.0,4.05111169]
[1734297046204,0.0045528,103040.0,103030.0,3.99283552]
[1734297046407,0.0866528,103040.0,103030.0,3.99283552]
[1734297046805,0.0866528,103040.0,103030.0,4.05111169]
[1734297047798,0.0866528,103040.0,103030.0,4.05680565]
[1734297048000,0.0866528,103040.0,103030.0,4.18742]
[1734297048425,0.0045528,103040.0,103030.0,4.18742]
[1734297048635,0.0045528,103040.0,103030.0,4.05680565]
[1734297050327,0.0866528,103040.0,103030.0,4.05680565]
[1734297051185,0.0866528,103040.0,103030.0,4.05074292]
[1734297051424,0.0866528,103040.0,103030.0,3.95680566]
[1734297051629,0.0866528,103040.0,103030.0,4.00680566]
[1734297051830,0.0866528,103040.0,103030.0,4.05680566]
[1734297052461,0.0866528,103040.0,103030.0,4.05074292]
[1734297052668,0.0866528,103040.0,103030.0,4.05680567]
[1734297052873,0.0866528,103040.0,103030.0,1.36446167]
[1734297053249,0.0866528,103040.0,103030.0,4.53691267]
[1734297053661,0.0866528,103040.0,103030.0,4.3627602]
[1734297053865,0.0866528,103040.0,103030.0,4.53702769]
[1734297054298,0.0866528,103040.0,103030.0,4.51181069]
[1734297054637,0.0866528,103040.0,103030.0,4.41481469]
[1734297054896,0.0866528,103040.0,103030.0,4.39638769]
[1734297055270,0.0866528,103040.0,103030.0,4.1561682]
[1734297055817,0.0866528,103040.0,103030.0,4.15616816]
[1734297056922,0.0866528,103040.0,103030.0,4.15429667]
[1734297058397,0.0866528,103040.0,103030.0,4.15430967]
[1734297058810,0.0866528,103040.0,103030.0,4.59608518]
[1734297059052,0.0011724,103040.0,103030.0,4.66264332]
[1734297059265,4e-07,103040.0,103030.0,4.85501949]
[1734297059467,4e-07,103040.0,103030.0,1.88916049]
[1734297059707,4e-07,103040.0,103030.0,1.57201131]
[1734297059947,0.0060895,103040.0,103030.0,1.57201131]
[1734297061095,0.0060895,103040.0,103030.0,1.58171043]
[1734297061318,0.0060895,103040.0,103030.0,6.53790143]
[1734297061528,0.0060895,103040.0,103030.0,6.99785241]
[1734297061734,4e-07,103040.0,103030.0,7.01187197]
[1734297061929,4e-07,103040.0,103030.0,2.05568097]
[1734297062138,4e-07,103040.0,103030.0,2.03749511]
[1734297062361,0.0060895,103040.0,103030.0,1.20962487]
[1734297062576,0.001,103050.0,103040.0,0.1]
[1734297062824,0.001,103050.0,103040.0,5.96212534]
[1734297063023,0.001,103050.0,103040.0,6.73354543]
[1734297064583,0.001,103050.0,103040.0,6.72457878]
[1734297064795,0.0011724,103050.0,103040.0,6.72457878]
[1734297065049,0.0011724,103050.0,103040.0,6.71488018]
[1734297065270,0.0011724,103050.0,103040.0,6.73788018]
[1734297065910,0.0011724,103050.0,103040.0,6.87198018]
[1734297066549,0.0491,103070.0,103060.0,0.25]
[1734297066550,0.11620151,103070.0,103060.0,0.25]
[1734297066797,0.001,103080.0,103060.0,6.04255949]
[1734297067005,0.001,103080.0,103070.0,5.46475333]
[1734297067216,0.001,103080.0,103070.0,5.47081496]
[1734297067432,0.001,103080.0,103070.0,5.80332557]
[1734297067641,0.001,103080.0,103070.0,5.39926757]
[1734297067854,0.00105459,103080.0,103070.0,5.39926757]
[1734297068477,0.00105459,103080.0,103070.0,5.52976271]
[1734297068681,0.00105459,103080.0,103070.0,5.57976271]
[1734297068925,0.00105459,103080.0,103070.0,5.72661198]
[1734297069326,0.00105459,103080.0,103070.0,5.17974198]
[1734297069544,0.00105459,103080.0,103070.0,4.96224342]
[1734297069757,0.08548596,103080.0,103070.0,4.90989942]
[1734297069980,0.07625459,103080.0,103070.0,4.68205742]
[1734297070225,0.08548596,103080.0,103070.0,4.45228142]
[1734297070504,0.08548596,103080.0,103070.0,4.27065341]
[1734297070929,0.08548596,103080.0,103070.0,4.27065179]
[1734297071348,0.08548596,103080.0,103070.0,4.09665294]
[1734297072971,0.07625459,103080.0,103070.0,4.09665294]
[1734297073249,0.08550775,103080.0,103070.0,4.09665294]
[1734297073669,0.08550775,103080.0,103070.0,3.78602089]
[1734297074327,0.08550775,103080.0,103070.0,3.78602088]
[1734297074537,0.08550775,103080.0,103070.0,3.65552175]
[1734297074962,0.08550775,103080.0,103070.0,3.6751116]
[1734297075597,0.08550775,103080.0,103070.0,5.4231806]
[1734297075797,0.07625459,103080.0,103070.0,5.43393922]
[1734297076304,0.07625459,103080.0,103070.0,5.08879122]
[1734297076511,0.07642699,103080.0,103070.0,5.08879122]
[1734297076978,0.07642699,103080.0,103070.0,4.39846622]
[1734297077186,0.07642699,103080.0,103070.0,3.87591222]
[1734297077397,0.08568015,103080.0,103070.0,3.98788979]
[1734297077607,0.08568015,103080.0,103070.0,3.08973735]
[1734297077809,0.13358015,103080.0,103070.0,0.82874481]
[1734297078017,0.13358015,103080.0,103070.0,0.77055164]
[1734297078654,0.13358015,103080.0,103070.0,0.28872664]
[1734297078858,0.13358015,103080.0,103070.0,0.26913679]
[1734297079060,0.13358015,103080.0,103070.0,0.26307679]
[1734297079899,0.13358015,103080.0,103070.0,0.41307679]
[1734297082761,0.23360628,103080.0,103070.0,0.344042]
[1734297082985,0.23263418,103080.0,103070.0,0.40231817]
[1734297083611,0.23263418,103080.0,103070.0,0.20827617]
[1734297083839,0.1209,103070.0,103060.0,0.01028289]
[1734297084179,0.1209,103060.0,103050.0,0.388132]
[1734297084605,0.13010764,103060.0,103050.0,0.388132]
[1734297085215,0.13010764,103060.0,103050.0,0.538132]
[1734297085419,0.13010764,103060.0,103050.0,0.59640817]
[1734297085626,0.13010764,103060.0,103050.0,0.65468434]
[1734297086045,0.13010764,103060.0,103050.0,0.66564836]
[1734297086259,0.13010764,103060.0,103050.0,0.60737219]
[1734297086865,0.13010764,103060.0,103050.0,0.66564836]
[1734297087040,0.13010764,103060.0,103050.0,0.67624877]
[1734297087887,0.13010764,103060.0,103050.0,0.6179726]
[1734297088378,0.13010764,103060.0,103050.0,0.6180588]
[1734297088943,0.13010764,103060.0,103050.0,0.60709478]
[1734297090968,0.03010764,103060.0,103050.0,0.60709478]
[1734297091591,0.12916167,103060.0,103050.0,0.1500862]
[1734297091824,0.12916167,103060.0,103050.0,8.62e-05]
[1734297092027,0.32322267,103060.0,103050.0,8.62e-05]
[1734297094161,0.37122267,103060.0,103050.0,8.62e-05]
[1734297098615,0.58294558,103060.0,103040.0,8.62e-05]
[1734297098825,0.41910613,103050.0,103040.0,8.62e-05]
[1734297099037,0.42767502,103050.0,103040.0,8.62e-05]
[1734297099169,0.194099,103040.0,103030.0,8.62e-05]
[1734297099399,0.50687594,103040.0,103030.0,8.62e-05]
[1734297099615,0.42782256,103040.0,103030.0,8.62e-05]
[1734297100467,0.42782256,103040.0,103030.0,0.00025011]
[1734297103963,0.42413261,103040.0,103030.0,0.00025011]
[1734297104711,0.42254692,103040.0,103030.0,0.00025011]
[1734297111687,0.0782,103030.0,103010.0,0.18458131]
[1734297111802,0.10002613,103020.0,103010.0,0.18458131]
[1734297112008,0.10439145,103020.0,103010.0,0.18458131]
[1734297114415,0.00436532,103020.0,103010.0,0.42330422]
[1734297114618,0.00436532,103020.0,103010.0,0.43432998]
[1734297118628,0.00436532,103020.0,103010.0,0.42330422]
[1734297119863,0.00436532,103020.0,103010.0,0.08872291]
[1734297120110,0.00436532,103020.0,103010.0,0.08924452]
[1734297120313,0.00436532,103020.0,103010.0,0.28383951]
[1734297120492,0.00436532,103020.0,103010.0,0.28286891]
[1734297121069,0.00436532,103020.0,103010.0,2.95490591]
[1734297121531,0.07973784,103040.0,103030.0,0.194118]
[1734297121702,0.17879187,103040.0,103030.0,0.28284091]
[1734297121902,0.17976397,103040.0,103030.0,0.28284091]
[1734297122503,0.17928499,103040.0,103030.0,0.28284091]
[1734297122908,0.17928499,103040.0,103030.0,0.194118]
[1734297123117,0.17928499,103040.0,103030.0,0.344118]
[1734297123515,0.17945739,103040.0,103030.0,0.344118]
[1734297126502,0.18384636,103040.0,103030.0,0.344118]
[1734297136540,0.29884636,103040.0,103020.0,0.01019984]
[1734297136745,0.0791,103020.0,103010.0,0.1942412]
[1734297137066,0.18343394,103020.0,103010.0,0.1942412]
[1734297137442,0.18246184,103020.0,103010.0,0.1942412]
[1734297137843,0.18246184,103020.0,103010.0,0.28296411]
[1734297138126,0.18246184,103020.0,103010.0,0.40249575]
[1734297139087,0.18418496,103020.0,103010.0,0.40249575]
[1734297140099,0.18418496,103020.0,103010.0,0.3442412]
[1734297140511,0.37929406,103020.0,103010.0,0.1500862]
[1734297140705,0.37832196,103020.0,103010.0,0.1500862]
[1734297141002,0.18418496,103020.0,103010.0,0.1500862]
[1734297141157,0.18515706,103020.0,103010.0,0.1500862]
[1734297142540,0.18515706,103020.0,103010.0,0.3442412]
[1734297142819,0.18515706,103020.0,103010.0,0.1500862]
[1734297143147,0.18515706,103020.0,103010.0,0.3442412]
[1734297146041,0.18418496,103020.0,103010.0,0.3442412]
[1734297148695,0.00603093,103020.0,103010.0,0.82491758]
[1734297149120,0.00603093,103020.0,103010.0,0.91186478]
[1734297149331,0.00603093,103020.0,103010.0,1.48798138]
[1734297149541,0.00603093,103020.0,103010.0,1.66187578]
[1734297149979,0.27661824,103040.0,103020.0,0.388255]
[1734297150191,0.09905403,103030.0,103020.0,0.62702438]
[1734297152450,0.00081024,103040.0,103030.0,0.344118]
[1734297152637,0.00033126,103040.0,103030.0,1.43576138]
[1734297153039,0.00033126,103040.0,103030.0,1.522851]
[1734297153220,0.00033126,103040.0,103030.0,1.43576138]
[1734297153605,0.00033126,103040.0,103030.0,1.522851]
[1734297154477,0.00033126,103040.0,103030.0,1.97488914]
[1734297155845,0.00033126,103040.0,103030.0,1.65348543]
[1734297156276,0.00033126,103040.0,103030.0,1.9746987]
[1734297156431,0.00919461,103040.0,103030.0,1.9746987]
[1734297157283,0.23682074,103040.0,103030.0,0.4311641]
[1734297157515,0.23584864,103040.0,103030.0,0.344118]
[1734297157714,0.23584864,103040.0,103030.0,0.15]
[1734297158117,0.23584864,103040.0,103030.0,0.344118]
[1734297158729,0.42994764,103040.0,103020.0,0.29303824]
[1734297158967,0.10002613,103030.0,103020.0,0.344123]
[1734297159356,0.10887533,103030.0,103020.0,0.344123]
[1734297159792,0.10887533,103030.0,103020.0,0.449827]
[1734297160712,0.10790323,103030.0,103020.0,0.449827]
[1734297161357,0.10790323,103030.0,103020.0,0.62736576]
[1734297161559,0.0088492,103030.0,103020.0,0.53859638]
[1734297162097,0.0088492,103030.0,103020.0,0.62567327]
[1734297162307,0.0088492,103030.0,103020.0,0.53859638]
[1734297162630,0.0088492,103030.0,103020.0,0.62567327]
[1734297163243,0.0088492,103030.0,103020.0,0.53859638]
[1734297163582,0.0088492,103030.0,103020.0,0.62567327]
[1734297163928,0.0088492,103030.0,103020.0,0.53859638]
[1734297164132,0.0088492,103030.0,103020.0,0.62567327]
[1734297164571,0.0088492,103030.0,103020.0,0.53859638]
[1734297165393,0.0088492,103030.0,103020.0,0.449827]
[1734297167109,0.19080323,103030.0,103020.0,0.449827]
[1734297169827,0.19097563,103030.0,103020.0,0.449827]
[1734297171493,0.19097563,103030.0,103020.0,0.15]
[1734297171897,0.38606573,103030.0,103020.0,0.15]
[1734297172102,0.38509363,103030.0,103020.0,0.15]
[1734297172726,0.38509363,103030.0,103010.0,0.70505621]
[1734297172934,0.09905403,103020.0,103010.0,0.72443516]
[1734297173141,0.09905403,103020.0,103010.0,0.63735446]
[1734297173347,0.10586909,103020.0,103010.0,0.63735446]
[1734297175406,0.10814077,103020.0,103010.0,0.63735446]
[1734297176178,0.23614077,103020.0,103010.0,0.63735446]
[1734297176414,0.23614077,103020.0,103010.0,0.40447143]
[1734297176596,0.23614077,103020.0,103010.0,0.59862543]
[1734297179257,0.23250476,103020.0,103010.0,0.59862543]
[1734297179929,0.00545073,103020.0,103010.0,0.59862543]
[1734297182013,0.00545073,103020.0,103010.0,0.56809873]
[1734297182445,0.00545073,103020.0,103010.0,0.56818493]
[1734297185886,0.08225073,103020.0,103010.0,0.56818493]
[1734297186103,0.08225073,103020.0,103010.0,0.50994225]
[1734297186349,0.08225073,103020.0,103010.0,0.56818493]
[1734297186564,0.08225073,103020.0,103010.0,0.65527581]
[1734297186780,0.18130476,103020.0,103010.0,0.2474011]
[1734297186989,0.42384176,103020.0,103010.0,0.1500862]
[1734297187206,0.42384176,103020.0,103010.0,8.62e-05]
[1734297187710,0.41839103,103020.0,103010.0,8.62e-05]
[1734297187917,0.42390641,103020.0,103010.0,8.62e-05]
[1734297191944,0.42238002,103020.0,103010.0,8.62e-05]
[1734297193915,0.42255242,103020.0,103010.0,8.62e-05]
[1734297202379,0.47255242,103020.0,103010.0,8.62e-05]
[1734297202582,0.54555242,103020.0,103010.0,8.62e-05]
[1734297202795,0.63227858,103020.0,103010.0,8.62e-05]
[1734297204460,0.63386822,103020.0,103010.0,8.62e-05]
[1734297205079,0.6338669,103020.0,103010.0,8.62e-05]
[1734297205287,0.54714206,103020.0,103010.0,8.62e-05]
[1734297210204,0.60542854,103020.0,103010.0,8.62e-05]
[1734297210658,1.02958116,103020.0,103010.0,8.62e-05]
[1734297210873,0.93100611,103020.0,103010.0,8.62e-05]
[1734297211088,1.23454308,103020.0,103010.0,8.62e-05]
[1734297211320,1.1762566,103020.0,103010.0,8.62e-05]
[1734297212178,1.23454308,103020.0,103010.0,8.62e-05]
[1734297212599,1.3212042,103020.0,103010.0,8.62e-05]
[1734297213014,1.23454308,103020.0,103010.0,8.62e-05]
[1734297213663,1.32119181,103020.0,103010.0,8.62e-05]
[1734297214797,1.10437969,103020.0,103010.0,8.62e-05]
[1734297215217,1.32119181,103020.0,103010.0,8.62e-05]
[1734297215651,1.10437969,103020.0,103010.0,8.62e-05]
[1734297216158,1.11448635,103020.0,103010.0,8.62e-05]
[1734297217054,1.05619987,103020.0,103010.0,8.62e-05]
[1734297217733,1.05612077,103020.0,103010.0,8.62e-05]
[1734297219530,0.99783429,103020.0,103010.0,8.62e-05]
[1734297219750,1.04553513,103020.0,103010.0,8.62e-05]
[1734297219956,0.87208544,103020.0,103010.0,8.62e-05]
[1734297220164,1.04553513,103020.0,103010.0,8.62e-05]
[1734297220807,1.04601411,103020.0,103010.0,8.62e-05]
[1734297223438,0.87256442,103020.0,103010.0,8.62e-05]
[1734297223645,0.87208544,103020.0,103010.0,8.62e-05]
[1734297224064,1.04553513,103020.0,103010.0,8.62e-05]
[1734297224702,1.0705666,103020.0,103010.0,8.62e-05]
[1734297225968,0.98772763,103020.0,103010.0,8.62e-05]
[1734297226176,0.81379896,103020.0,103010.0,8.62e-05]
[1734297227016,0.87208544,103020.0,103010.0,8.62e-05]
[1734297227236,0.74199817,103020.0,103010.0,8.62e-05]
[1734297227454,0.87208544,103020.0,103010.0,8.62e-05]
[1734297227888,0.87190002,103020.0,103010.0,8.62e-05]
[1734297228571,1.04324392,103020.0,103010.0,8.62e-05]
[1734297228781,0.87048243,103020.0,103010.0,8.62e-05]
[1734297229004,1.0437229,103020.0,103010.0,8.62e-05]
[1734297229214,0.87048243,103020.0,103010.0,8.62e-05]
[1734297229640,1.0437229,103020.0,103010.0,8.62e-05]
[1734297229888,1.04324392,103020.0,103010.0,8.62e-05]
[1734297230952,1.0437229,103020.0,103010.0,8.62e-05]
[1734297232684,1.26027349,103020.0,103010.0,8.62e-05]
[1734297233632,1.26036064,103020.0,103010.0,8.62e-05]
[1734297233835,1.26036001,103020.0,103010.0,8.62e-05]
[1734297234109,1.17365326,103020.0,103010.0,8.62e-05]
[1734297237343,1.23193974,103020.0,103010.0,8.62e-05]
[1734297237550,1.04372291,103020.0,103010.0,8.62e-05]
[1734297237793,1.14277694,103020.0,103010.0,8.62e-05]
[1734297238006,1.20106342,103020.0,103010.0,8.62e-05]
[1734297239063,1.21117337,103020.0,103010.0,8.62e-05]
[1734297239669,1.0379329,103020.0,103010.0,8.62e-05]
[1734297239908,0.93887887,103020.0,103010.0,8.62e-05]
[1734297240118,0.88011341,103020.0,103010.0,8.62e-05]
[1734297240736,0.66356282,103020.0,103010.0,8.62e-05]
[1734297240945,0.88050279,103020.0,103010.0,8.62e-05]
[1734297242021,0.92389078,103020.0,103010.0,8.62e-05]
[1734297242240,0.88054745,103020.0,103010.0,8.62e-05]
[1734297242707,0.82230796,103020.0,103010.0,8.62e-05]
[1734297242965,0.92389078,103020.0,103010.0,8.62e-05]
[1734297243998,0.99324391,103020.0,103010.0,8.62e-05]
[1734297244240,0.92389078,103020.0,103010.0,8.62e-05]
[1734297247239,0.98217726,103020.0,103010.0,2e-07]
[1734297248685,0.9825319,103020.0,103010.0,2e-07]
[1734297248921,0.86595894,103020.0,103010.0,2e-07]
[1734297249192,0.9825319,103020.0,103010.0,2e-07]
[1734297249721,1.08158593,103020.0,103010.0,2e-07]
[1734297249978,1.08206495,103020.0,103010.0,2e-07]
[1734297250508,0.98301092,103020.0,103010.0,2e-07]
[1734297250765,1.01559624,103020.0,103010.0,2e-07]
[1734297251019,1.01511722,103020.0,103010.0,2e-07]
[1734297251980,1.01559624,103020.0,103010.0,2e-07]
[1734297252201,0.89902328,103020.0,103010.0,2e-07]
[1734297252643,1.01559624,103020.0,103010.0,2e-07]
[1734297252905,1.01570658,103020.0,103010.0,2e-07]
[1734297258114,0.194212,102980.0,102970.0,0.05828648]
[1734297258323,0.29326603,102980.0,102970.0,0.05828648]
[1734297258530,0.29691171,102980.0,102970.0,0.05828648]
[1734297259445,0.29691171,102980.0,102970.0,0.05883306]
[1734297261169,0.29691171,102980.0,102970.0,0.15663306]
[1734297263111,0.29691171,102980.0,102970.0,0.16270104]
[1734297263745,0.30677454,102980.0,102970.0,0.16270104]
[1734297264486,0.30677454,102980.0,102960.0,0.15]
[1734297264695,0.29328503,102970.0,102960.0,0.20839237]
[1734297265111,0.29692216,102970.0,102960.0,0.20839237]